bitfinex-derivatives/quotes_SOLF0:USTF0_20220102
["timestamp","ask_amount","ask_price","bid_price","bid_amount"]
[1641115185846,14.94588407,175.12,175.08,4.05513885]
[1641115186046,14.94588407,175.12,175.09,0.78216319]
[1641115186247,14.94588407,175.12,175.08,4.05513885]
[1641115186553,14.94588407,175.12,175.07,4.83730204]
[1641115187249,14.94588407,175.12,175.07,4.05513885]
[1641115187648,12.16839854,175.11,175.07,0.78216319]
[1641115188250,12.16839854,175.11,175.06,4.05513885]
[1641115188448,2.21783681,175.07,175.06,4.05513885]
[1641115188648,5.503,175.07,175.06,4.05513885]
[1641115188850,5.503,175.07,175.04,4.05513885]
[1641115189051,27.66479,175.05,175.04,4.05513885]
[1641115190252,30.44227553,175.05,175.03,5.33294392]
[1641115190949,2.77748553,175.04,175.03,5.33294392]
[1641115192352,2.77748553,175.04,175.03,4.05513885]
[1641115193054,27.66479,175.05,175.01,1.27780507]
[1641115193653,27.66479,175.05,175.04,4.05408403]
[1641115194254,30.44110308,175.05,175.04,4.05408403]
[1641115195256,2.77631308,175.05,175.04,4.05408403]
[1641115196455,14.94471162,175.08,175.04,4.05408403]
[1641115196654,27.66479,175.07,175.04,4.05408403]
[1641115197057,2.77631308,175.06,175.05,4.05408403]
[1641115199256,2.77631308,175.06,175.05,4.83624722]
[1641115199557,2.77631308,175.06,175.05,5.3318891]
[1641115200156,27.66479,175.07,175.05,1.27780507]
[1641115200357,27.66479,175.07,175.03,2.05996826]
[1641115200558,27.66479,175.07,175.03,1.27780507]
[1641115201061,2.7770074,175.06,175.04,5.33313849]
[1641115201659,2.7770074,175.06,175.05,0.78216319]
[1641115202764,39.83318854,175.1,175.05,2.05996826]
[1641115203567,2.77664968,175.09,175.06,5.33281329]
[1641115207371,2.77664968,175.09,175.06,4.05500822]
[1641115207570,2.77664968,175.09,175.05,4.83717141]
[1641115208170,14.94504822,175.11,175.05,4.83717141]
[1641115208872,27.66479,175.1,175.05,4.83717141]
[1641115209672,2.77664968,175.09,175.05,4.83717141]
[1641115210074,2.77664968,175.09,175.06,0.78216319]
[1641115210275,2.77664968,175.09,175.07,0.78216319]
[1641115210572,2.77664968,175.09,175.05,4.05500822]
[1641115211373,2.77664968,175.09,175.06,4.05500822]
[1641115212474,2.77664968,175.09,175.06,9.95100822]
[1641115213074,4.04922447,175.08,175.06,9.95100822]
[1641115213681,4.04922447,175.08,175.07,0.78216319]
[1641115215480,4.04922447,175.09,175.07,6.11383518]
[1641115216277,27.66479,175.1,175.08,0.78216319]
[1641115217378,27.66479,175.1,175.09,1.27843934]
[1641115217578,21.17806967,175.1,175.09,1.27843934]
[1641115217879,21.17806967,175.1,175.09,2.06060253]
[1641115218080,4.05420021,175.11,175.09,2.06060253]
[1641115218279,27.66479,175.14,175.09,0.78216319]
[1641115218979,27.66479,175.14,175.12,4.05396989]
[1641115219179,2.77591294,175.13,175.12,4.05396989]
[1641115219779,27.66479,175.14,175.12,4.05396989]
[1641115220479,2.77604823,175.13,175.11,4.05396989]
[1641115221878,2.77604823,175.13,175.12,4.05396989]
[1641115223585,2.77604823,175.13,175.1,5.33202684]
[1641115228691,2.77604823,175.13,175.1,6.11419003]
[1641115229089,2.77604823,175.13,175.11,5.33202684]
[1641115229591,2.77604823,175.13,175.11,6.11419003]
[1641115229990,2.77604823,175.13,175.12,0.78216319]
[1641115230190,2.77604823,175.15,175.12,4.83613308]
[1641115230690,2.77604823,175.15,175.12,4.05396989]
[1641115230890,4.99388504,175.17,175.14,4.05396989]
[1641115231493,2.77604823,175.17,175.14,4.05396989]
[1641115231690,2.77604823,175.16,175.13,4.05396989]
[1641115232391,14.94444677,175.17,175.13,4.05396989]
[1641115233292,12.16839854,175.17,175.13,4.05396989]
[1641115233492,29.88262681,175.18,175.09,34.19166989]
[1641115233692,61.67402681,175.18,175.09,34.19166989]
[1641115233892,61.67402681,175.18,175.12,0.78216319]
[1641115234895,65.70102173,175.18,175.12,0.78216319]
[1641115235096,65.70102173,175.18,175.09,34.19166989]
[1641115235597,61.67402681,175.18,175.09,34.19166989]
[1641115235996,61.67402681,175.18,175.1,0.78216319]
[1641115236196,65.70102173,175.18,175.1,0.78216319]
[1641115236395,65.70102173,175.18,175.11,0.78216319]
[1641115236996,65.70102173,175.18,175.09,34.19166989]
[1641115237597,2.77535794,175.17,175.14,4.05396989]
[1641115238500,14.94375648,175.17,175.13,4.05396989]
[1641115240601,27.66479,175.16,175.13,4.05396989]
[1641115241503,2.77535794,175.15,175.13,4.05396989]
[1641115242305,2.77535794,175.15,175.12,5.3320773]
[1641115242903,2.77535794,175.15,175.12,4.05396989]
[1641115243304,2.77535794,175.15,175.13,0.78216319]
[1641115244310,2.77535794,175.15,175.14,5.3320773]
[1641115245407,2.77535794,175.15,175.13,4.05396989]
[1641115245611,27.66479,175.16,175.11,5.70385581]
[1641115245810,27.66479,175.16,175.13,0.78216319]
[1641115246510,27.66479,175.16,175.15,4.05322831]
[1641115247210,30.4399459,175.16,175.14,5.33136162]
[1641115248014,2.7751559,175.15,175.14,4.05322831]
[1641115248911,27.66479,175.16,175.14,1.27813331]
[1641115249613,27.66479,175.16,175.15,4.05318203]
[1641115250212,30.43980846,175.16,175.15,5.33131534]
[1641115250411,2.77501846,175.16,175.15,5.33131534]
[1641115250614,2.77501846,175.16,175.15,4.83534522]
[1641115250813,39.83318854,175.19,175.15,4.83534522]
[1641115251114,39.83318854,175.19,175.15,4.05318203]
[1641115251313,39.83318854,175.19,175.17,0.78216319]
[1641115251916,27.66479,175.19,175.17,4.83534522]
[1641115252519,27.66479,175.19,175.17,0.78216319]
[1641115253619,31.70254075,175.19,175.16,5.309]
[1641115253818,31.70254075,175.19,175.17,0.78216319]
[1641115254420,27.66479,175.19,175.17,0.78216319]
[1641115257023,27.66479,175.19,175.15,4.05318203]
[1641115257226,27.66479,175.19,175.15,4.83534522]
[1641115257424,27.66479,175.19,175.15,4.05318203]
[1641115257827,27.66479,175.19,175.15,4.83534522]
[1641115258126,27.66479,175.19,175.15,4.05318203]
[1641115258327,27.66479,175.19,175.14,9.75589937]
[1641115259931,27.66479,175.19,175.18,0.78216319]
[1641115260332,27.66479,175.19,175.15,5.772]
[1641115260736,27.66479,175.19,175.18,0.78216319]
[1641115263934,27.66479,175.19,175.18,4.83534522]
[1641115264434,12.16839854,175.22,175.18,4.83534522]
[1641115264836,27.66479,175.2,175.18,4.83534522]
[1641115265033,27.66479,175.2,175.19,0.78216319]
[1641115265834,39.83318854,175.22,175.19,0.78216319]
[1641115266034,39.83318854,175.22,175.19,6.62116319]
[1641115267237,39.83318854,175.22,175.19,5.839]
[1641115267638,39.83318854,175.22,175.2,0.78216319]
[1641115268339,27.66479,175.22,175.2,0.78216319]
[1641115269142,27.66479,175.22,175.2,4.05318203]
[1641115269741,27.66479,175.22,175.21,0.78216319]
[1641115270142,12.16839854,175.24,175.21,0.78216319]
[1641115271242,12.16839854,175.24,175.2,4.83534522]
[1641115272652,12.16839854,175.26,175.22,4.05318203]
[1641115273353,12.16839854,175.25,175.21,4.05318203]
[1641115275553,31.88913681,175.27,175.23,0.78216319]
[1641115276154,44.05753535,175.27,175.23,0.78216319]
[1641115278260,32.6713,175.27,175.18,9.75459883]
[1641115278960,27.66479,175.25,175.18,9.75459883]
[1641115282766,39.83318854,175.25,175.21,4.05318203]
[1641115284166,27.66479,175.25,175.21,4.05318203]
[1641115284665,39.83318854,175.25,175.21,4.05318203]
[1641115286969,27.66479,175.25,175.21,4.05318203]
[1641115288570,12.16839854,175.26,175.21,4.05318203]
[1641115288771,15.16839854,175.26,175.21,4.05318203]
[1641115288972,12.16839854,175.26,175.21,4.05318203]
[1641115289172,4.05148386,175.22,175.21,4.05318203]
[1641115289673,39.83318854,175.25,175.21,4.05318203]
[1641115291376,39.83318854,175.25,175.22,4.05318203]
[1641115291377,2.77290535,175.24,175.22,4.05318203]
[1641115295180,2.77290535,175.24,175.23,4.05318203]
[1641115295382,2.77290535,175.24,175.23,8.20818203]
[1641115295682,2.77290535,175.24,175.23,9.4867473]
[1641115296686,2.77290535,175.26,175.23,9.4867473]
[1641115297183,2.77290535,175.26,175.23,8.20818203]
[1641115298187,2.77290535,175.26,175.23,4.155]
[1641115298385,2.77290535,175.26,175.21,4.05318203]
[1641115298886,2.77290535,175.26,175.2,4.05318203]
[1641115302491,3.0,175.27,175.2,4.05318203]
[1641115302791,30.66479,175.27,175.2,4.05318203]
[1641115302990,2.77290535,175.26,175.2,4.05318203]
[1641115305697,14.94130389,175.26,175.22,4.05318203]
[1641115306299,2.77290535,175.26,175.23,4.05318203]
[1641115307299,45.60609389,175.27,175.23,4.05318203]
[1641115307900,2.77290535,175.26,175.23,4.05318203]
[1641115310003,4.05104287,175.24,175.23,4.05318203]
[1641115310703,4.05104287,175.25,175.23,1.27564302]
[1641115313609,14.94130389,175.28,175.24,4.05073719]
[1641115315713,2.77290535,175.28,175.25,4.05073719]
[1641115315912,2.77290535,175.28,175.25,9.97773719]
[1641115316413,2.77290535,175.28,175.25,5.927]
[1641115319416,2.77290535,175.29,175.25,5.927]
[1641115321615,2.77290535,175.29,175.23,4.05073719]
[1641115322516,2.77290535,175.29,175.23,5.32619417]
[1641115324620,2.77290535,175.29,175.24,4.05073719]
[1641115325319,2.77290535,175.29,175.28,5.69816804]
[1641115325526,32.34464682,175.35,175.28,10.38116804]
[1641115325725,23.36464682,175.35,175.28,10.38116804]
[1641115325921,7.73234682,175.35,175.34,5.69605833]
[1641115326121,48.68760483,175.41,175.34,12.22605833]
[1641115326324,7.93420431,175.41,175.34,12.22605833]
[1641115326521,32.31153764,175.43,175.39,5.69459867]
[1641115326721,32.31153764,175.43,175.39,6.503]
[1641115326923,26.69783764,175.43,175.42,5.69313977]
[1641115327125,24.79783764,175.43,175.42,5.69313977]
[1641115327327,24.79783764,175.43,175.42,61.02271977]
[1641115327533,14.63833764,175.43,175.42,61.02271977]
[1641115327730,2.08063764,175.43,175.42,61.02271977]
[1641115327927,7.93420431,175.48,175.42,68.02271977]
[1641115328128,113.44504737,175.53,175.44,3.0]
[1641115328326,30.25317224,175.53,175.45,3.0]
[1641115328532,28.69317224,175.53,175.47,3.0]
[1641115328726,28.69317224,175.53,175.46,4.0]
[1641115328928,22.41317224,175.53,175.44,4.98]
[1641115329127,10.05317224,175.53,175.52,5.690548]
[1641115329327,10.05317224,175.53,175.52,11.079548]
[1641115330028,10.13281614,175.56,175.52,11.079548]
[1641115330327,10.13281614,175.56,175.52,5.690548]
[1641115331233,0.08,175.56,175.52,5.690548]
[1641115332631,0.08,175.56,175.52,11.79783365]
[1641115333432,0.08,175.56,175.54,27.66479]
[1641115333630,0.08,175.56,175.55,5.689253]
[1641115334433,0.08,175.56,175.55,14.79653865]
[1641115337034,0.08,175.56,175.55,24.7254477]
[1641115337437,48.43975836,175.79,175.55,24.7254477]
[1641115337634,48.43975836,175.79,175.7,7.0]
[1641115337835,48.43975836,175.79,175.7,11.156]
[1641115338135,14.30961988,175.82,175.72,4.03976299]
[1641115338335,14.30961988,175.82,175.72,11.03976299]
[1641115339136,14.30961988,175.82,175.7,4.156]
[1641115339137,3.0,175.86,175.75,7.0]
[1641115339336,3.0,175.87,175.79,27.66479]
[1641115339536,3.23147562,175.85,175.79,27.66479]
[1641115340139,3.23147562,175.87,175.8,5.68149537]
[1641115340538,3.23147562,175.87,175.8,4.31277966]
[1641115341338,3.23147562,175.87,175.84,27.66479]
[1641115341538,51.43975836,175.93,175.84,31.97979]
[1641115341738,51.43975836,175.93,175.9,5.67794685]
[1641115341938,48.43975836,175.93,175.92,5.67697985]
[1641115342436,81.15187513,175.99,175.92,5.67697985]
[1641115342938,62.73064979,176.02,175.92,5.67697985]
[1641115343138,62.73064979,176.02,175.97,5.67569102]
[1641115343337,62.73064979,176.02,175.98,27.66479]
[1641115343537,61.79064979,176.02,175.98,27.66479]
[1641115343937,61.79064979,176.02,175.95,27.66479]
[1641115344138,48.43658714,176.02,175.94,5.67665758]
[1641115344437,3.0,175.98,175.93,4.03815907]
[1641115344639,3.0,175.96,175.93,4.03815907]
[1641115344840,5.67923671,176.06,175.93,4.03815907]
[1641115345040,3.0,175.96,175.93,4.03815907]
[1641115345238,3.0,175.95,175.93,4.03815907]
[1641115345438,19.37466275,176.06,175.88,5.67843048]
[1641115345439,27.66479,175.97,175.88,37.38137955]
[1641115345638,27.66479,176.0,175.89,3.0]
[1641115345841,27.66479,176.0,175.88,37.38137955]
[1641115346038,4.03560492,175.91,175.9,4.03815907]
[1641115346243,10.37260492,175.91,175.9,4.03815907]
[1641115346839,6.337,175.91,175.89,9.71642833]
[1641115347238,3.0,175.96,175.89,9.71642833]
[1641115347445,27.66479,175.96,175.92,5.67730215]
[1641115347638,27.66479,176.0,175.95,5.67601317]
[1641115347838,48.43658714,176.01,175.95,5.67601317]
[1641115348039,48.43658714,176.01,175.88,4.03815907]
[1641115348239,48.43658714,176.01,175.88,7.03815907]
[1641115348440,48.43658714,176.01,175.88,4.03815907]
[1641115348639,3.0,176.03,175.93,4.03815907]
[1641115348841,3.0,176.05,175.93,10.10915907]
[1641115349238,3.0,175.98,175.94,5.67617426]
[1641115349440,4.03478038,175.95,175.94,37.37912333]
[1641115349741,4.03478038,175.95,175.94,9.71433333]
[1641115350142,62.94303305,176.03,175.94,9.71433333]
[1641115350343,32.27824305,176.0,175.94,5.67617426]
[1641115350743,3.0,175.95,175.91,4.03815907]
[1641115350945,6.021,175.95,175.91,4.03815907]
[1641115351450,27.66479,175.94,175.91,4.03815907]
[1641115351642,6.021,175.95,175.91,4.03815907]
[1641115351643,27.66479,175.97,175.91,4.03815907]
[1641115351843,59.94303305,175.97,175.89,4.03815907]
[1641115352044,32.27824305,175.97,175.89,9.71594473]
[1641115352445,4.03555219,175.92,175.91,4.03815907]
[1641115353246,32.27824305,175.99,175.9,7.03815907]
[1641115353546,32.27824305,175.99,175.93,5.67633536]
[1641115353845,32.27824305,176.01,175.93,5.67633536]
[1641115354445,32.27824305,176.01,175.95,3.0]
[1641115354647,32.27824305,176.03,175.95,4.707]
[1641115355248,32.27824305,176.03,175.94,4.03815907]
[1641115355548,3.0,175.97,175.95,4.03815907]
[1641115356148,15.10625419,175.96,175.92,4.03815907]
[1641115356345,3.0,175.93,175.92,4.03815907]
[1641115356548,8.059,175.93,175.92,4.03815907]
[1641115356747,5.059,175.93,175.92,4.03815907]
[1641115356947,17.16525419,175.93,175.89,27.66479]
[1641115357348,17.16525419,175.93,175.88,4.03815907]
[1641115357948,12.10625419,175.92,175.88,4.03815907]
[1641115358348,3.22928979,175.91,175.88,4.03815907]
[1641115358752,3.22928979,175.91,175.9,4.03815907]
[1641115359051,12.10625419,175.95,175.9,8.55615907]
[1641115359254,12.10625419,175.95,175.9,14.23362238]
[1641115359951,12.10625419,175.95,175.93,4.03815907]
[1641115360152,12.10625419,175.97,175.93,4.03815907]
[1641115360551,15.10625419,175.97,175.93,4.03815907]
[1641115360751,3.0,175.95,175.93,4.03815907]
[1641115360953,4.558,175.96,175.93,4.03815907]
[1641115361151,7.78697811,175.96,175.93,4.03815907]
[1641115361552,3.22897811,175.95,175.93,4.03815907]
[1641115361750,3.22897811,175.95,175.92,4.03815907]
[1641115362451,12.10625419,175.96,175.91,4.03815907]
[1641115362650,3.0,175.92,175.91,4.03815907]
[1641115363351,8.739,175.92,175.91,4.03815907]
[1641115363950,11.968434,175.92,175.87,18.24673477]
[1641115364153,3.0,175.9,175.87,18.24673477]
[1641115364353,3.0,175.9,175.87,12.10625419]
[1641115364553,3.0,175.9,175.84,17.7854909]
[1641115364752,3.229434,175.91,175.84,17.7854909]
[1641115364952,3.229434,175.91,175.8,54.99518989]
[1641115364953,3.0,175.86,175.8,32.27824305]
[1641115365152,4.711,175.86,175.8,37.9587702]
[1641115365352,4.711,175.86,175.8,5.68052715]
[1641115365555,27.66479,175.84,175.8,5.68052715]
[1641115366154,3.0,175.81,175.78,32.27824305]
[1641115366355,3.0,175.79,175.78,32.27824305]
[1641115366555,3.0,175.79,175.77,6.13895632]
[1641115366757,3.0,175.81,175.77,6.13895632]
[1641115367355,2.74595674,175.8,175.73,6.13895632]
[1641115367555,30.41074674,175.8,175.73,6.13895632]
[1641115368258,30.66479,175.8,175.73,6.13895632]
[1641115368758,27.66479,175.8,175.73,6.13895632]
[1641115368958,2.74593175,175.79,175.73,6.13895632]
[1641115369260,3.0,175.76,175.73,6.13895632]
[1641115369457,2.74593175,175.79,175.73,6.13895632]
[1641115370760,5.74593175,175.79,175.73,6.13895632]
[1641115370960,2.74593175,175.79,175.73,6.13895632]
[1641115371762,2.74593175,175.79,175.74,5.68246392]
[1641115372860,30.66479,175.84,175.74,5.68246392]
[1641115373160,27.66479,175.84,175.74,5.68246392]
[1641115373360,3.0,175.87,175.74,5.68246392]
[1641115373560,3.0,175.87,175.76,27.66479]
[1641115373761,3.0,175.86,175.76,33.53279]
[1641115374269,6.23063206,175.86,175.76,33.53279]
[1641115374463,6.23063206,175.86,175.76,36.53279]
[1641115374664,3.0,175.86,175.76,33.53279]
[1641115375265,3.0,175.87,175.76,33.53279]
[1641115375665,27.66479,175.88,175.79,27.66479]
[1641115376267,27.66479,175.88,175.79,33.34580122]
[1641115377071,2.74494292,175.87,175.8,6.13824781]
[1641115377272,3.0,175.86,175.8,10.30324781]
[1641115377669,27.66479,175.82,175.8,10.30324781]
[1641115379069,27.66479,175.82,175.8,4.165]
[1641115379771,27.66479,175.88,175.8,4.165]
[1641115379968,30.66479,175.88,175.8,4.165]
[1641115380169,3.0,175.85,175.8,4.165]
[1641115380677,3.0,175.86,175.8,4.165]
[1641115380872,2.74521695,175.87,175.8,4.165]
[1641115381473,3.0,175.9,175.8,4.165]
[1641115381673,3.0,175.9,175.8,31.82979]
[1641115381873,3.0,175.89,175.8,31.82979]
[1641115382275,2.74461995,175.89,175.81,7.43076293]
[1641115382477,2.74461995,175.89,175.84,5.67939798]
[1641115382675,2.74461995,175.89,175.85,3.0]
[1641115382875,2.74461995,175.89,175.84,12.17039798]
[1641115383275,2.74461995,175.89,175.84,15.17039798]
[1641115383477,2.74461995,175.89,175.88,5.67778566]
[1641115383678,2.74461995,175.89,175.88,10.46378566]
[1641115383978,33.40940995,175.94,175.88,10.46378566]
[1641115384377,2.74461995,175.94,175.88,10.46378566]
[1641115384978,12.75107878,175.96,175.89,1.29251512]
[1641115385677,2.74461995,175.96,175.9,27.66479]
[1641115386478,3.0,175.92,175.9,27.66479]
[1641115386678,2.74461995,175.97,175.91,1.29251512]
[1641115386877,5.74461995,175.97,175.91,1.29251512]
[1641115387280,3.0,175.96,175.91,1.29251512]
[1641115387477,5.74461995,175.96,175.84,7.43027694]
[1641115387677,27.66479,175.93,175.84,35.09506694]
[1641115388279,2.74461995,175.92,175.85,7.43027694]
[1641115388481,2.74461995,175.92,175.85,12.07227694]
[1641115388981,2.74461995,175.92,175.86,1.29251512]
[1641115389580,2.74461995,175.92,175.86,5.102]
[1641115390280,2.74461995,175.92,175.87,1.29251512]
[1641115390883,3.0,175.9,175.87,1.29251512]
[1641115391081,2.74461995,175.92,175.87,1.29251512]
[1641115391882,12.75437174,175.92,175.85,1.29251512]
[1641115392483,2.74461995,175.92,175.85,1.29251512]
[1641115393080,2.74461995,175.92,175.87,5.67826926]
[1641115393283,2.74461995,175.92,175.87,10.57426926]
[1641115394183,2.74461995,175.92,175.88,1.29251512]
[1641115395087,2.74461995,175.92,175.88,6.96951512]
[1641115395484,2.74461995,175.92,175.89,1.29251512]
[1641115396387,39.77351942,175.93,175.88,5.677]
[1641115396587,27.66479,175.93,175.88,5.677]
[1641115400392,27.66479,175.93,175.87,5.67826926]
[1641115400792,27.66479,175.93,175.83,27.66479]
[1641115400992,27.66479,175.93,175.81,15.10872942]
[1641115401193,27.66479,175.93,175.81,12.10872942]
[1641115401498,27.66479,175.93,175.82,1.28301477]
[1641115402194,27.66479,175.88,175.82,1.28301477]
[1641115403398,27.66479,175.88,175.84,12.10872942]
[1641115404199,2.7435004,175.87,175.82,1.28301477]
[1641115410103,27.66479,175.84,175.82,1.28301477]
[1641115411206,27.66479,175.84,175.78,13.39174419]
[1641115412005,27.66479,175.84,175.81,12.10872942]
[1641115412206,27.66479,175.84,175.81,17.35072942]
[1641115412607,27.66479,175.84,175.82,1.28301477]
[1641115413908,27.66479,175.84,175.8,12.10872942]
[1641115414908,3.0,175.83,175.8,12.10872942]
[1641115415108,5.59,175.83,175.8,12.10872942]
[1641115415309,8.59,175.83,175.8,12.10872942]
[1641115415511,8.59,175.83,175.78,12.10872942]
[1641115415710,5.59,175.83,175.78,12.10872942]
[1641115416211,27.66479,175.8,175.78,12.10872942]
[1641115417210,27.66479,175.8,175.77,12.10872942]
[1641115419714,27.66479,175.8,175.74,12.10872942]
[1641115420614,12.10872942,175.83,175.74,12.10872942]
[1641115420817,27.66479,175.84,175.76,12.10872942]
[1641115421414,27.66479,175.84,175.76,17.79038619]
[1641115421621,27.66479,175.84,175.76,12.10872942]
[1641115422016,2.7447471,175.83,175.77,12.10872942]
[1641115422616,14.85347652,175.86,175.77,12.10872942]
[1641115423420,27.66479,175.87,175.76,1.28301477]
[1641115423818,27.66479,175.87,175.77,3.0]
[1641115424019,27.66479,175.87,175.77,8.68133398]
[1641115424221,27.66479,175.87,175.77,5.68133398]
[1641115424419,30.66479,175.87,175.77,5.68133398]
[1641115424619,30.66479,175.87,175.76,56.35631477]
[1641115425122,34.67754368,175.87,175.78,5.29576845]
[1641115425518,34.67754368,175.87,175.78,4.01275368]
[1641115425719,4.01275368,175.86,175.76,59.08605368]
[1641115426120,27.66479,175.83,175.76,59.08605368]
[1641115426320,27.66479,175.83,175.77,3.0]
[1641115426522,27.66479,175.83,175.77,7.01275368]
[1641115426721,27.66479,175.83,175.77,4.01275368]
[1641115427123,27.66479,175.83,175.77,9.85475368]
[1641115427522,27.66479,175.83,175.78,4.01275368]
[1641115428324,27.66479,175.83,175.78,9.8416157]
[1641115428723,27.66479,175.83,175.78,8.55875368]
[1641115429525,27.66479,175.83,175.79,13.40152116]
[1641115430225,31.67754368,175.83,175.79,12.10872942]
[1641115431127,34.67754368,175.83,175.79,12.10872942]
[1641115431526,3.0,175.81,175.79,12.10872942]
[1641115431727,9.896,175.81,175.79,12.10872942]
[1641115431926,6.896,175.81,175.75,49.64567652]
[1641115432131,4.01275368,175.8,175.76,12.11607771]
[1641115432327,4.01275368,175.8,175.76,17.62007771]
[1641115433328,4.01275368,175.8,175.76,5.504]
[1641115433527,4.01275368,175.84,175.77,1.29279174]
[1641115434027,4.01275368,175.82,175.77,1.29279174]
[1641115434426,4.01275368,175.82,175.77,4.29279174]
[1641115434828,4.01275368,175.83,175.77,4.29279174]
[1641115435027,4.01275368,175.83,175.8,5.68036582]
[1641115435227,4.01275368,175.83,175.8,10.14636582]
[1641115435428,4.01275368,175.86,175.81,1.29279174]
[1641115436129,4.01275368,175.86,175.81,28.95758174]
[1641115437132,4.01275368,175.86,175.82,3.0]
[1641115437333,4.01275368,175.88,175.84,5.67907545]
[1641115437533,4.01275368,175.88,175.84,11.62207545]
[1641115438234,4.01275368,175.88,175.84,39.28686545]
[1641115438435,4.01275368,175.89,175.85,1.29279174]
[1641115439236,4.01275368,175.88,175.85,1.29279174]
[1641115441441,4.01275368,175.9,175.85,7.4294886]
[1641115442241,4.01275368,175.9,175.85,14.0844886]
[1641115442441,4.01275368,175.9,175.87,3.0]
[1641115442842,5.368e-05,175.89,175.85,18.0844886]
[1641115443042,2.7459591,175.93,175.88,7.0]
[1641115443242,2.7459591,175.93,175.89,3.0]
[1641115443442,2.7459591,175.93,175.9,3.0]
[1641115444045,2.7459591,175.95,175.9,3.0]
[1641115444244,2.7459591,175.95,175.94,27.66479]
[1641115444546,2.7459591,175.95,175.94,33.26779]
[1641115445044,2.7459591,175.95,175.94,36.26779]
[1641115445244,14.28170784,176.02,175.94,34.56058174]
[1641115445245,2.7459591,176.02,175.94,34.56058174]
[1641115445647,2.7459591,176.02,175.94,40.23643383]
[1641115446649,2.7459591,176.02,175.95,1.29279174]
[1641115447251,3.0,176.01,175.95,1.29279174]
[1641115447950,3.0,176.0,175.95,1.29279174]
[1641115448151,5.7459591,176.02,175.95,1.29279174]
[1641115448351,2.7459591,176.0,175.92,1.29279174]
[1641115449053,2.7459591,176.01,175.92,1.29279174]
[1641115449654,2.7459591,176.01,175.92,7.56079174]
[1641115449854,35.02420215,176.02,175.92,7.56079174]
[1641115450053,38.02420215,176.02,175.92,7.56079174]
[1641115450255,27.66479,175.98,175.92,7.56079174]
[1641115450456,35.02420215,176.02,175.93,5.67601317]
[1641115450655,2.7459591,176.01,175.93,6.96880491]
[1641115451658,2.7459591,176.02,175.94,1.29279174]
[1641115462071,12.10420864,175.99,175.93,5.67601317]
[1641115463072,4.303,176.0,175.94,1.29260197]
[1641115463276,30.66479,176.01,175.94,1.29260197]
[1641115463673,3.0,176.0,175.94,1.29260197]
[1641115463874,12.10491077,175.98,175.93,5.67601317]
[1641115464377,15.10491077,175.98,175.9,52.8792]
[1641115464574,3.0,175.98,175.94,1.29257186]
[1641115464976,17.85112889,175.99,175.94,1.29257186]
[1641115465175,14.85112889,175.99,175.94,1.29257186]
[1641115465578,13.00251569,176.0,175.91,18.24110467]
[1641115465776,13.00251569,176.0,175.89,12.10420864]
[1641115465777,12.10653496,175.97,175.89,12.10420864]
[1641115466379,27.66479,175.96,175.88,19.53363103]
[1641115467079,2.7429853,175.95,175.88,19.53363103]
[1641115468182,27.66479,175.96,175.88,19.53363103]
[1641115468680,2.74314449,175.95,175.88,19.53363103]
[1641115469279,27.66479,175.96,175.88,19.53363103]
[1641115470683,2.74322587,175.95,175.87,19.53363103]
[1641115470980,39.77154866,175.96,175.88,12.10420864]
[1641115471882,27.66479,175.96,175.88,12.10420864]
[1641115472083,14.8501977,175.95,175.87,19.53363103]
[1641115472681,27.66479,175.96,175.87,19.53363103]
[1641115473282,2.74315619,175.95,175.87,19.53363103]
[1641115473483,14.85015723,175.95,175.87,19.53363103]
[1641115473884,27.66479,175.96,175.87,19.53363103]
[1641115474485,47.14,175.97,175.87,19.53363103]
[1641115474990,14.85032513,175.95,175.87,19.53363103]
[1641115475588,47.14,175.97,175.87,19.53363103]
[1641115475786,2.74283278,175.96,175.88,12.10420864]
[1641115476189,59.24611899,175.97,175.89,5.67730215]
[1641115476390,59.24611899,175.97,175.89,33.34209215]
[1641115477291,47.14,175.97,175.9,1.29252636]
[1641115477493,47.14,175.97,175.9,7.40952636]
[1641115477790,12.10611899,176.0,175.9,7.40952636]
[1641115477990,15.10611899,176.0,175.91,1.29252636]
[1641115478189,12.10611899,176.0,175.91,1.29252636]
[1641115478390,14.8427033,176.0,175.91,1.29252636]
[1641115479698,2.73658431,176.0,175.91,1.29252636]
[1641115480094,5.73658431,176.0,175.91,1.29252636]
[1641115480793,2.73658431,175.99,175.91,1.29252636]
[1641115482995,2.73658431,176.0,175.92,12.10420864]
[1641115484395,2.73658431,176.0,175.91,1.29252636]
[1641115484597,30.40137431,176.0,175.91,1.29252636]
[1641115484995,3.0,175.97,175.91,1.29252636]